[Event "Late-Titled-Tuesday-Blitz-April-23-2024"]
[Site "Chess.com"]
[Date "2024.04.23"]
[Round "7"]
[White "MatthewG-p4p"]
[Black "JoakimVonAnd"]
[Result "0-1"]
[WhiteElo "2906"]
[BlackElo "2725"]
[TimeControl "180+1"]
[EndTime "15:18:44 PDT"]
[Termination "JoakimVonAnd won by resignation"]

1. e4 {[%clk 0:02:58]} 1... c6 {[%clk 0:02:58.6]} 2. d4 {[%clk 0:02:57.9]} 2...
d5 {[%clk 0:02:59.5]} 3. exd5 {[%clk 0:02:57.8]} 3... cxd5 {[%clk 0:02:59.5]} 4.
Bd3 {[%clk 0:02:57.8]} 4... Nc6 {[%clk 0:02:57.1]} 5. c3 {[%clk 0:02:58.1]} 5...
Qc7 {[%clk 0:02:57.1]} 6. h3 {[%clk 0:02:58.2]} 6... e6 {[%clk 0:02:56]} 7. Nf3
{[%clk 0:02:57.7]} 7... Bd6 {[%clk 0:02:56.2]} 8. O-O {[%clk 0:02:58]} 8... Nf6
{[%clk 0:02:56.4]} 9. Re1 {[%clk 0:02:55.9]} 9... O-O {[%clk 0:02:56.7]} 10. Bg5
{[%clk 0:02:56.5]} 10... Nd7 {[%clk 0:02:51.5]} 11. Na3 {[%clk 0:02:56.3]} 11...
a6 {[%clk 0:02:50.5]} 12. Nc2 {[%clk 0:02:55.6]} 12... b5 {[%clk 0:02:48.4]} 13.
a4 {[%clk 0:02:52.2]} 13... b4 {[%clk 0:02:46.4]} 14. c4 {[%clk 0:02:50.7]}
14... dxc4 {[%clk 0:02:45.2]} 15. Bxc4 {[%clk 0:02:51.6]} 15... h6 {[%clk
0:02:37.9]} 16. Be3 {[%clk 0:02:46.9]} 16... Bb7 {[%clk 0:02:36.6]} 17. Rc1
{[%clk 0:02:40.8]} 17... Ne7 {[%clk 0:02:29.7]} 18. Bd3 {[%clk 0:02:39.3]} 18...
Qa5 {[%clk 0:02:27]} 19. b3 {[%clk 0:02:31.7]} 19... Rac8 {[%clk 0:02:25.8]} 20.
Nd2 {[%clk 0:02:31.3]} 20... Bb8 {[%clk 0:02:17.4]} 21. Nc4 {[%clk 0:02:25.7]}
21... Qc7 {[%clk 0:02:15.3]} 22. f4 {[%clk 0:01:47.6]} 22... Nd5 {[%clk
0:02:05.5]} 23. Ne5 {[%clk 0:01:44.1]} 23... Nxe3 {[%clk 0:01:48.9]} 24. Nxe3
{[%clk 0:01:36.6]} 24... Qxc1 {[%clk 0:01:44.9]} 25. Qxc1 {[%clk 0:01:37.5]}
25... Rxc1 {[%clk 0:01:45.1]} 26. Rxc1 {[%clk 0:01:38.4]} 26... Nf6 {[%clk
0:01:43.2]} 27. Kf1 {[%clk 0:01:31.4]} 27... Rd8 {[%clk 0:01:42.7]} 28. Rc4
{[%clk 0:01:03]} 28... a5 {[%clk 0:01:31]} 29. Nc6 {[%clk 0:01:02.7]} 29... Bxc6
{[%clk 0:01:25]} 30. Rxc6 {[%clk 0:01:03.6]} 30... Bxf4 {[%clk 0:01:21.5]} 31.
Nc4 {[%clk 0:01:03.9]} 31... g6 {[%clk 0:01:16]} 32. Nxa5 {[%clk 0:01:01.4]}
32... Rxd4 {[%clk 0:01:16]} 33. Bc4 {[%clk 0:00:57.1]} 33... Re4 {[%clk
0:01:09.3]} 34. Kf2 {[%clk 0:00:35.6]} 34... Re3 {[%clk 0:01:09.5]} 35. g4
{[%clk 0:00:17.6]} 35... Ne4+ {[%clk 0:01:05.2]} 36. Kg2 {[%clk 0:00:17.5]}
36... Rg3+ {[%clk 0:00:50.4]} 37. Kf1 {[%clk 0:00:17.3]} 37... Rxh3 {[%clk
0:00:51]} 38. Nb7 {[%clk 0:00:17.8]} 38... Rh2 {[%clk 0:00:51.2]} 39. a5 {[%clk
0:00:13.8]} 39... Nd2+ {[%clk 0:00:40]} 40. Ke1 {[%clk 0:00:10.6]} 40... Nf3+
{[%clk 0:00:39.7]} 41. Kf1 {[%clk 0:00:08.2]} 41... Be3 {[%clk 0:00:38.3]} 0-1

[Event "Late-Titled-Tuesday-Blitz-April-23-2024"]
[Site "Chess.com"]
[Date "2024.04.23"]
[Round "7"]
[White "ChadBiryani"]
[Black "biostatistician"]
[Result "0-1"]
[WhiteElo "2475"]
[BlackElo "2744"]
[TimeControl "180+1"]
[EndTime "15:18:45 PDT"]
[Termination "biostatistician won on time"]

1. d4 {[%clk 0:02:59.7]} 1... Nf6 {[%clk 0:02:59.7]} 2. Bg5 {[%clk 0:03:00.2]}
2... Ne4 {[%clk 0:02:56.2]} 3. Bf4 {[%clk 0:02:59.1]} 3... d5 {[%clk 0:02:56.6]}
4. e3 {[%clk 0:02:59.3]} 4... Bf5 {[%clk 0:02:50.6]} 5. g4 {[%clk 0:02:57.9]}
5... Bg6 {[%clk 0:02:49.5]} 6. h4 {[%clk 0:02:58.2]} 6... h5 {[%clk 0:02:49.3]}
7. g5 {[%clk 0:02:58.2]} 7... e6 {[%clk 0:02:48.7]} 8. Bd3 {[%clk 0:02:57]} 8...
Bd6 {[%clk 0:02:40.5]} 9. Nh3 {[%clk 0:02:54.8]} 9... Bf5 {[%clk 0:02:32.3]} 10.
Bxd6 {[%clk 0:02:34.4]} 10... Nxd6 {[%clk 0:02:33.2]} 11. Nf4 {[%clk 0:02:32.3]}
11... g6 {[%clk 0:02:31.3]} 12. Nd2 {[%clk 0:02:28.9]} 12... Nc6 {[%clk
0:02:30.5]} 13. c3 {[%clk 0:02:25.3]} 13... Qe7 {[%clk 0:02:26.7]} 14. a4 {[%clk
0:02:16.5]} 14... O-O {[%clk 0:02:22.5]} 15. Nf3 {[%clk 0:02:02.9]} 15... Ne4
{[%clk 0:02:17.1]} 16. O-O {[%clk 0:01:46.6]} 16... Rad8 {[%clk 0:02:13.1]} 17.
Ne5 {[%clk 0:01:44.5]} 17... Nxe5 {[%clk 0:02:00.5]} 18. dxe5 {[%clk 0:01:43.8]}
18... c5 {[%clk 0:02:00.6]} 19. f3 {[%clk 0:01:40.6]} 19... Ng3 {[%clk
0:01:59.6]} 20. Bxf5 {[%clk 0:01:40.4]} 20... Nxf5 {[%clk 0:01:49.3]} 21. Qe1
{[%clk 0:01:40.5]} 21... Qc7 {[%clk 0:01:42.3]} 22. e4 {[%clk 0:01:25.3]} 22...
Ne7 {[%clk 0:01:40.7]} 23. Nd3 {[%clk 0:01:21]} 23... c4 {[%clk 0:01:36.2]} 24.
Nb4 {[%clk 0:01:16.1]} 24... Qxe5 {[%clk 0:01:35.7]} 25. f4 {[%clk 0:01:09.5]}
25... Qc7 {[%clk 0:01:32.5]} 26. Kg2 {[%clk 0:01:02.1]} 26... dxe4 {[%clk
0:01:25.2]} 27. Qxe4 {[%clk 0:00:57.2]} 27... Nf5 {[%clk 0:01:20.7]} 28. Kh3
{[%clk 0:00:53.7]} 28... Rd2 {[%clk 0:01:20.2]} 29. Rad1 {[%clk 0:00:41.2]}
29... Rfd8 {[%clk 0:01:19.3]} 30. Rxd2 {[%clk 0:00:41.1]} 30... Rxd2 {[%clk
0:01:19.8]} 31. a5 {[%clk 0:00:37]} 31... Rxb2 {[%clk 0:00:59.7]} 32. Rd1 {[%clk
0:00:35.9]} 32... Rb3 {[%clk 0:00:58.9]} 33. a6 {[%clk 0:00:10.5]} 33... Rxc3+
{[%clk 0:00:55.7]} 34. Kh2 {[%clk 0:00:11.1]} 34... bxa6 {[%clk 0:00:45.3]} 35.
Nxa6 {[%clk 0:00:10]} 35... Qb6 {[%clk 0:00:41.4]} 36. Qa8+ {[%clk 0:00:02.8]}
36... Kh7 {[%clk 0:00:40.9]} 37. Rd2 {[%clk 0:00:02.2]} 37... Qe3 {[%clk
0:00:35]} 0-1

[Event "Late-Titled-Tuesday-Blitz-April-23-2024"]
[Site "Chess.com"]
[Date "2024.04.23"]
[Round "7"]
[White "ellatambien"]
[Black "stasOR4ik"]
[Result "1-0"]
[WhiteElo "2726"]
[BlackElo "2469"]
[TimeControl "180+1"]
[EndTime "15:18:52 PDT"]
[Termination "ellatambien won by resignation"]

1. e4 {[%clk 0:03:00.9]} 1... e6 {[%clk 0:03:00.5]} 2. d3 {[%clk 0:02:57]} 2...
d5 {[%clk 0:03:01.4]} 3. Qe2 {[%clk 0:02:56.8]} 3... c5 {[%clk 0:02:59.4]} 4.
Nf3 {[%clk 0:02:56.3]} 4... dxe4 {[%clk 0:02:59]} 5. dxe4 {[%clk 0:02:55.9]}
5... Nc6 {[%clk 0:02:59.6]} 6. g3 {[%clk 0:02:53.8]} 6... b6 {[%clk 0:02:58.8]}
7. Bg2 {[%clk 0:02:51.7]} 7... Bb7 {[%clk 0:02:58.1]} 8. O-O {[%clk 0:02:42]}
8... Nf6 {[%clk 0:02:56.1]} 9. e5 {[%clk 0:02:39.4]} 9... Nd7 {[%clk 0:02:53.8]}
10. Bf4 {[%clk 0:02:33]} 10... Be7 {[%clk 0:02:50.7]} 11. h4 {[%clk 0:02:32.2]}
11... h6 {[%clk 0:02:49.5]} 12. h5 {[%clk 0:02:21.6]} 12... Qc7 {[%clk
0:02:48.2]} 13. Nc3 {[%clk 0:02:17]} 13... a6 {[%clk 0:02:48.3]} 14. Ne4 {[%clk
0:02:16.5]} 14... Ncxe5 {[%clk 0:02:17]} 15. Rad1 {[%clk 0:02:07.5]} 15... O-O-O
{[%clk 0:01:58.3]} 16. Kh1 {[%clk 0:01:51]} 16... f6 {[%clk 0:01:29.5]} 17. Rd2
{[%clk 0:01:50.6]} 17... Nb8 {[%clk 0:01:10.9]} 18. Bxe5 {[%clk 0:01:34.7]}
18... fxe5 {[%clk 0:01:10.3]} 19. Rfd1 {[%clk 0:01:35.3]} 19... Nc6 {[%clk
0:01:09]} 20. c3 {[%clk 0:01:32.5]} 20... Kb8 {[%clk 0:00:48]} 21. Kg1 {[%clk
0:01:32.6]} 21... Rxd2 {[%clk 0:00:41.2]} 22. Rxd2 {[%clk 0:01:29.3]} 22... Rd8
{[%clk 0:00:41.8]} 23. Nh2 {[%clk 0:01:21.9]} 23... Na5 {[%clk 0:00:30]} 24.
Rxd8+ {[%clk 0:01:17.7]} 24... Qxd8 {[%clk 0:00:29.4]} 25. Ng4 {[%clk
0:01:14.8]} 25... Qd5 {[%clk 0:00:24.9]} 26. b3 {[%clk 0:01:09.9]} 26... c4
{[%clk 0:00:21.7]} 27. b4 {[%clk 0:01:07.3]} 27... Nc6 {[%clk 0:00:11.1]} 28.
Ne3 {[%clk 0:01:06.6]} 28... Qd3 {[%clk 0:00:09.6]} 29. Qg4 {[%clk 0:01:03.7]}
29... Qb1+ {[%clk 0:00:08.1]} 30. Kh2 {[%clk 0:01:03.3]} 30... Nd4 {[%clk
0:00:08.5]} 31. cxd4 {[%clk 0:00:53.3]} 31... exd4 {[%clk 0:00:09.4]} 32. Nxc4
{[%clk 0:00:53.6]} 32... Qc2 {[%clk 0:00:09]} 33. Ncd2 {[%clk 0:00:52.7]} 33...
Bxb4 {[%clk 0:00:08.7]} 34. Qf4+ {[%clk 0:00:46.5]} 34... Ka7 {[%clk 0:00:08]}
35. Nb3 {[%clk 0:00:44.9]} 35... Qxa2 {[%clk 0:00:07]} 36. Nxd4 {[%clk
0:00:44.1]} 36... a5 {[%clk 0:00:04.6]} 37. Nb5+ {[%clk 0:00:42.7]} 37... Ka6
{[%clk 0:00:05]} 38. Nc7+ {[%clk 0:00:42.5]} 38... Ka7 {[%clk 0:00:04.8]} 39.
Qf7 {[%clk 0:00:38.8]} 39... Bxe4 {[%clk 0:00:02]} 40. Bxe4 {[%clk 0:00:36.2]}
40... e5 {[%clk 0:00:02.4]} 41. Qxa2 {[%clk 0:00:34.8]} 1-0

[Event "Late-Titled-Tuesday-Blitz-April-23-2024"]
[Site "Chess.com"]
[Date "2024.04.23"]
[Round "7"]
[White "Mops_2004"]
[Black "Jospem"]
[Result "0-1"]
[WhiteElo "2872"]
[BlackElo "3091"]
[TimeControl "180+1"]
[EndTime "15:18:55 PDT"]
[Termination "Jospem won by resignation"]

1. g3 {[%clk 0:03:00.9]} 1... c5 {[%clk 0:02:59.5]} 2. Bg2 {[%clk 0:03:00.9]}
2... Nc6 {[%clk 0:03:00.4]} 3. f4 {[%clk 0:03:00]} 3... g6 {[%clk 0:03:01]} 4.
Nf3 {[%clk 0:03:00.1]} 4... Bg7 {[%clk 0:03:01.7]} 5. O-O {[%clk 0:03:00.4]}
5... d6 {[%clk 0:03:02.2]} 6. e4 {[%clk 0:02:58.9]} 6... e6 {[%clk 0:03:02.7]}
7. c3 {[%clk 0:02:53.5]} 7... Nge7 {[%clk 0:03:02.8]} 8. Kh1 {[%clk 0:02:50.3]}
8... O-O {[%clk 0:03:02.8]} 9. d3 {[%clk 0:02:46.5]} 9... b6 {[%clk 0:03:02.8]}
10. Be3 {[%clk 0:02:46]} 10... Qd7 {[%clk 0:03:00.2]} 11. d4 {[%clk 0:02:44.2]}
11... cxd4 {[%clk 0:02:56.9]} 12. cxd4 {[%clk 0:02:43.4]} 12... Ba6 {[%clk
0:02:57.1]} 13. Rf2 {[%clk 0:02:41.5]} 13... d5 {[%clk 0:02:27]} 14. e5 {[%clk
0:02:41]} 14... Nf5 {[%clk 0:02:27.2]} 15. Bc1 {[%clk 0:02:41.2]} 15... Rac8
{[%clk 0:02:26.4]} 16. Nc3 {[%clk 0:02:40.9]} 16... f6 {[%clk 0:02:24.7]} 17. g4
{[%clk 0:02:33]} 17... Nfe7 {[%clk 0:02:24.6]} 18. Be3 {[%clk 0:02:30.2]} 18...
fxe5 {[%clk 0:02:15.1]} 19. fxe5 {[%clk 0:02:27.6]} 19... Na5 {[%clk 0:02:15.5]}
20. Qe1 {[%clk 0:02:11]} 20... Nc4 {[%clk 0:01:58.6]} 21. Bc1 {[%clk 0:02:10.7]}
21... b5 {[%clk 0:01:55.7]} 22. b3 {[%clk 0:02:09.8]} 22... Na5 {[%clk
0:01:54.5]} 23. Ba3 {[%clk 0:01:49.6]} 23... Nac6 {[%clk 0:01:53.5]} 24. Bc5
{[%clk 0:01:48.2]} 24... b4 {[%clk 0:01:47.2]} 25. Na4 {[%clk 0:01:41.6]} 25...
Rf4 {[%clk 0:01:42.9]} 26. h3 {[%clk 0:01:27.2]} 26... Rcf8 {[%clk 0:01:41.5]}
27. Rd1 {[%clk 0:01:17.6]} 27... Bb5 {[%clk 0:01:33.2]} 28. Nb2 {[%clk
0:01:17.4]} 28... h6 {[%clk 0:01:22.6]} 29. Nd3 {[%clk 0:00:58.4]} 29... Re4
{[%clk 0:01:09]} 30. Qd2 {[%clk 0:00:55.1]} 30... g5 {[%clk 0:01:07.2]} 31. Nfe1
{[%clk 0:00:47.7]} 31... Rxf2 {[%clk 0:01:04.8]} 32. Qxf2 {[%clk 0:00:47.7]}
32... Ng6 {[%clk 0:00:59.8]} 33. Bxe4 {[%clk 0:00:31.5]} 33... dxe4 {[%clk
0:01:00.7]} 34. Nxb4 {[%clk 0:00:31.9]} 34... Nf4 {[%clk 0:00:48.1]} 35. Rd2
{[%clk 0:00:23.8]} 35... Nxb4 {[%clk 0:00:40.5]} 36. Bxb4 {[%clk 0:00:23.9]}
36... Nd5 {[%clk 0:00:41.2]} 37. Nc2 {[%clk 0:00:15.7]} 37... e3 {[%clk
0:00:41.6]} 38. Nxe3 {[%clk 0:00:15.7]} 38... Nxb4 {[%clk 0:00:42.4]} 39. Nc4
{[%clk 0:00:11.2]} 39... Bc6+ {[%clk 0:00:41.3]} 40. Kh2 {[%clk 0:00:11.6]}
40... Nd5 {[%clk 0:00:40.9]} 41. h4 {[%clk 0:00:09.5]} 41... Nf4 {[%clk
0:00:39.3]} 42. d5 {[%clk 0:00:08.3]} 42... Bxd5 {[%clk 0:00:38.7]} 43. hxg5
{[%clk 0:00:08.2]} 43... hxg5 {[%clk 0:00:38.9]} 44. Qc5 {[%clk 0:00:08.3]}
44... Bf8 {[%clk 0:00:38.1]} 45. Nd6 {[%clk 0:00:07.3]} 45... Qh7+ {[%clk
0:00:38.3]} 0-1

[Event "Late-Titled-Tuesday-Blitz-April-23-2024"]
[Site "Chess.com"]
[Date "2024.04.23"]
[Round "7"]
[White "kai_nov"]
[Black "Veleamater"]
[Result "1-0"]
[WhiteElo "2280"]
[BlackElo "2424"]
[TimeControl "180+1"]
[EndTime "15:18:56 PDT"]
[Termination "kai_nov won by resignation"]

1. d4 {[%clk 0:03:00.9]} 1... d6 {[%clk 0:03:00.9]} 2. c4 {[%clk 0:03:00.7]}
2... g6 {[%clk 0:03:01.4]} 3. Nc3 {[%clk 0:03:00.8]} 3... Bg7 {[%clk 0:03:01.8]}
4. e4 {[%clk 0:03:01.5]} 4... Nf6 {[%clk 0:03:02]} 5. f3 {[%clk 0:03:01.9]} 5...
O-O {[%clk 0:03:02.5]} 6. Bg5 {[%clk 0:03:01.6]} 6... Nc6 {[%clk 0:03:02.7]} 7.
Nge2 {[%clk 0:03:01.2]} 7... h6 {[%clk 0:03:00.9]} 8. Be3 {[%clk 0:03:00.5]}
8... e5 {[%clk 0:03:00.9]} 9. d5 {[%clk 0:03:00.4]} 9... Ne7 {[%clk 0:02:48.8]}
10. Qd2 {[%clk 0:02:46.3]} 10... Kh7 {[%clk 0:02:48.4]} 11. O-O-O {[%clk
0:02:38.1]} 11... a6 {[%clk 0:02:45.7]} 12. Kb1 {[%clk 0:02:29.5]} 12... Ne8
{[%clk 0:02:40.5]} 13. g4 {[%clk 0:02:22.7]} 13... c6 {[%clk 0:02:32.8]} 14. h4
{[%clk 0:02:17.2]} 14... b5 {[%clk 0:02:31.5]} 15. Ng3 {[%clk 0:02:09.6]} 15...
bxc4 {[%clk 0:02:16.1]} 16. Bxc4 {[%clk 0:02:10.5]} 16... cxd5 {[%clk 0:02:16]}
17. Nxd5 {[%clk 0:02:06.1]} 17... Be6 {[%clk 0:02:13.6]} 18. h5 {[%clk
0:02:00.5]} 18... g5 {[%clk 0:02:05.6]} 19. Nf5 {[%clk 0:01:49.3]} 19... Nxd5
{[%clk 0:01:55.3]} 20. Bxd5 {[%clk 0:01:46.8]} 20... Rb8 {[%clk 0:01:29.8]} 21.
Rh2 {[%clk 0:01:40.1]} 21... Qc7 {[%clk 0:01:04.2]} 22. Qd3 {[%clk 0:01:23.6]}
22... Nf6 {[%clk 0:00:35.6]} 23. Rc2 {[%clk 0:01:03]} 23... Qd7 {[%clk
0:00:26.8]} 24. Bxe6 {[%clk 0:00:58.9]} 24... fxe6 {[%clk 0:00:25.1]} 25. Nxg7
{[%clk 0:00:58.7]} 25... Kxg7 {[%clk 0:00:15.5]} 26. Qxd6 {[%clk 0:00:58.5]}
26... Qxd6 {[%clk 0:00:12.6]} 27. Rxd6 {[%clk 0:00:59.4]} 27... Rbe8 {[%clk
0:00:11.5]} 28. Rc7+ {[%clk 0:00:53.8]} 28... Rf7 {[%clk 0:00:11.2]} 29. Rxf7+
{[%clk 0:00:52.8]} 29... Kxf7 {[%clk 0:00:11.2]} 30. Rxa6 {[%clk 0:00:53]} 30...
Ng8 {[%clk 0:00:08.2]} 31. Ra7+ {[%clk 0:00:51.3]} 31... Kf6 {[%clk 0:00:06.7]}
32. Bc5 {[%clk 0:00:47.9]} 32... Rc8 {[%clk 0:00:06]} 33. b4 {[%clk 0:00:47.5]}
33... Rb8 {[%clk 0:00:05.3]} 34. Kc2 {[%clk 0:00:46.7]} 34... Rc8 {[%clk
0:00:05.2]} 35. Kb3 {[%clk 0:00:45.7]} 35... Rb8 {[%clk 0:00:05.5]} 36. a4
{[%clk 0:00:45.6]} 36... Rc8 {[%clk 0:00:05.8]} 37. a5 {[%clk 0:00:45.7]} 37...
Rd8 {[%clk 0:00:06.5]} 38. a6 {[%clk 0:00:44.2]} 38... Rd3+ {[%clk 0:00:07]} 39.
Kc4 {[%clk 0:00:43.8]} 39... Rxf3 {[%clk 0:00:06.7]} 40. Rb7 {[%clk 0:00:42.8]}
40... Rf1 {[%clk 0:00:05.8]} 41. a7 {[%clk 0:00:42.8]} 41... Ra1 {[%clk
0:00:05.9]} 42. Rb8 {[%clk 0:00:40.9]} 42... Ne7 {[%clk 0:00:03.2]} 43. Bxe7+
{[%clk 0:00:39.6]} 43... Kxe7 {[%clk 0:00:02.6]} 44. a8=Q {[%clk 0:00:40]} 1-0

[Event "Late-Titled-Tuesday-Blitz-April-23-2024"]
[Site "Chess.com"]
[Date "2024.04.23"]
[Round "7"]
[White "ColorsTrilogy"]
[Black "lupta_robin"]
[Result "0-1"]
[WhiteElo "2406"]
[BlackElo "2582"]
[TimeControl "180+1"]
[EndTime "15:18:57 PDT"]
[Termination "lupta_robin won on time"]

1. e4 {[%clk 0:03:00.9]} 1... e5 {[%clk 0:02:59.9]} 2. Nf3 {[%clk 0:03:00.3]}
2... Nf6 {[%clk 0:03:00]} 3. Nxe5 {[%clk 0:02:55.3]} 3... Nc6 {[%clk 0:03:00.6]}
4. Nf3 {[%clk 0:02:36.2]} 4... Nxe4 {[%clk 0:02:44.1]} 5. Nc3 {[%clk 0:02:35.9]}
5... Nxc3 {[%clk 0:02:40.4]} 6. dxc3 {[%clk 0:02:34.7]} 6... Be7 {[%clk
0:02:41]} 7. Be3 {[%clk 0:02:29.4]} 7... d5 {[%clk 0:02:41.2]} 8. Qd2 {[%clk
0:02:27.8]} 8... Be6 {[%clk 0:02:39.8]} 9. O-O-O {[%clk 0:02:27]} 9... a6 {[%clk
0:02:40.4]} 10. h4 {[%clk 0:02:25]} 10... h6 {[%clk 0:02:39.4]} 11. Be2 {[%clk
0:02:06.3]} 11... Qd7 {[%clk 0:02:37.6]} 12. Nd4 {[%clk 0:02:01.9]} 12... Nxd4
{[%clk 0:02:34.9]} 13. Bxd4 {[%clk 0:01:55.3]} 13... O-O {[%clk 0:02:34.4]} 14.
g4 {[%clk 0:01:42.6]} 14... c5 {[%clk 0:02:32.3]} 15. Be5 {[%clk 0:01:36.1]}
15... f6 {[%clk 0:02:30.6]} 16. Bf4 {[%clk 0:01:34.3]} 16... Bd6 {[%clk
0:02:26.9]} 17. Be3 {[%clk 0:01:29]} 17... b5 {[%clk 0:02:12.3]} 18. g5 {[%clk
0:01:25.7]} 18... fxg5 {[%clk 0:02:09.5]} 19. hxg5 {[%clk 0:01:24.7]} 19... hxg5
{[%clk 0:02:09.8]} 20. Bxg5 {[%clk 0:01:09.7]} 20... Rxf2 {[%clk 0:01:53.9]} 21.
Qd3 {[%clk 0:01:03.7]} 21... Rf5 {[%clk 0:01:33.9]} 22. Rdg1 {[%clk 0:00:55.6]}
22... Rxg5 {[%clk 0:01:25.7]} 23. Qh7+ {[%clk 0:00:49.4]} 23... Kf7 {[%clk
0:01:19.2]} 24. Rxg5 {[%clk 0:00:35.4]} 24... Bf4+ {[%clk 0:01:19.1]} 25. Kb1
{[%clk 0:00:36.1]} 25... Bxg5 {[%clk 0:01:19.1]} 26. Qh5+ {[%clk 0:00:36.7]}
26... Ke7 {[%clk 0:01:18.7]} 27. Qxg5+ {[%clk 0:00:36.4]} 27... Kd6 {[%clk
0:01:19.4]} 28. Rh7 {[%clk 0:00:31.4]} 28... Rg8 {[%clk 0:01:05.3]} 29. Bd3
{[%clk 0:00:18.3]} 29... Qe7 {[%clk 0:00:59]} 30. Qf4+ {[%clk 0:00:17.7]} 30...
Kc6 {[%clk 0:00:59.5]} 31. Qe5 {[%clk 0:00:16.5]} 31... Qf6 {[%clk 0:00:58.4]}
32. Qg3 {[%clk 0:00:10.4]} 32... a5 {[%clk 0:00:47.2]} 33. a4 {[%clk 0:00:09.4]}
33... bxa4 {[%clk 0:00:46.2]} 34. Rh4 {[%clk 0:00:05.4]} 34... a3 {[%clk
0:00:44.5]} 35. Ra4 {[%clk 0:00:03.7]} 35... Ra8 {[%clk 0:00:36.1]} 36. Rxa3
{[%clk 0:00:03.2]} 36... g5 {[%clk 0:00:36.7]} 37. Rb3 {[%clk 0:00:01.9]} 37...
a4 {[%clk 0:00:33.3]} 38. Rb8 {[%clk 0:00:02.5]} 38... Rxb8 {[%clk 0:00:29.8]}
39. Qxb8 {[%clk 0:00:03.4]} 39... c4 {[%clk 0:00:29.2]} 40. Qb5+ {[%clk
0:00:03.9]} 40... Kxb5 {[%clk 0:00:29]} 0-1

[Event "Late-Titled-Tuesday-Blitz-April-23-2024"]
[Site "Chess.com"]
[Date "2024.04.23"]
[Round "7"]
[White "Zampronha1971"]
[Black "xasid81"]
[Result "1/2-1/2"]
[WhiteElo "2465"]
[BlackElo "2666"]
[TimeControl "180+1"]
[EndTime "15:18:59 PDT"]
[Termination "Game drawn by repetition"]

1. e4 {[%clk 0:02:57.1]} 1... a6 {[%clk 0:03:00.9]} 2. d4 {[%clk 0:02:55.9]}
2... e6 {[%clk 0:03:01.8]} 3. c4 {[%clk 0:02:56]} 3... d5 {[%clk 0:03:02.4]} 4.
Nc3 {[%clk 0:02:55.5]} 4... dxe4 {[%clk 0:03:00.4]} 5. Nxe4 {[%clk 0:02:54.7]}
5... Nd7 {[%clk 0:03:01.3]} 6. Nf3 {[%clk 0:02:53.2]} 6... Ngf6 {[%clk
0:03:01.8]} 7. Bd3 {[%clk 0:02:51.9]} 7... Nxe4 {[%clk 0:03:01.6]} 8. Bxe4
{[%clk 0:02:52.1]} 8... Nf6 {[%clk 0:03:02.5]} 9. Bc2 {[%clk 0:02:52.2]} 9...
Bb4+ {[%clk 0:03:03]} 10. Bd2 {[%clk 0:02:51.7]} 10... Bxd2+ {[%clk 0:03:03.5]}
11. Qxd2 {[%clk 0:02:52.6]} 11... b6 {[%clk 0:03:04]} 12. O-O-O {[%clk
0:02:51.4]} 12... Bb7 {[%clk 0:03:03.9]} 13. Kb1 {[%clk 0:02:49.1]} 13... Bxf3
{[%clk 0:03:03.5]} 14. gxf3 {[%clk 0:02:48.9]} 14... Qd6 {[%clk 0:03:02.7]} 15.
Rhg1 {[%clk 0:02:42]} 15... O-O-O {[%clk 0:02:48.2]} 16. Rxg7 {[%clk 0:02:37.4]}
16... Qxh2 {[%clk 0:02:46.8]} 17. Rxf7 {[%clk 0:02:32.9]} 17... Rhf8 {[%clk
0:02:40.4]} 18. Rxf8 {[%clk 0:02:28.5]} 18... Rxf8 {[%clk 0:02:41.3]} 19. d5
{[%clk 0:02:20.4]} 19... exd5 {[%clk 0:02:40]} 20. cxd5 {[%clk 0:02:21.3]} 20...
Qe5 {[%clk 0:02:37.6]} 21. Qd3 {[%clk 0:02:04.5]} 21... Kb7 {[%clk 0:02:30.4]}
22. Qf5 {[%clk 0:02:00.3]} 22... Qxf5 {[%clk 0:02:28.9]} 23. Bxf5 {[%clk
0:01:59.8]} 23... Rd8 {[%clk 0:02:29.3]} 24. Be4 {[%clk 0:01:55.7]} 24... Kb8
{[%clk 0:02:26.4]} 25. Rh1 {[%clk 0:01:56.1]} 25... Rd7 {[%clk 0:02:23.6]} 26.
Rh6 {[%clk 0:01:55.2]} 26... Nxd5 {[%clk 0:02:20.9]} 27. Bxd5 {[%clk 0:01:53.4]}
27... Rxd5 {[%clk 0:02:21.8]} 28. Rxh7 {[%clk 0:01:52.2]} 28... Rd2 {[%clk
0:02:20.8]} 29. Rh2 {[%clk 0:01:50.9]} 29... Rd3 {[%clk 0:02:18.6]} 30. Rh3
{[%clk 0:01:50.5]} 30... Rd2 {[%clk 0:02:17.1]} 31. Rh2 {[%clk 0:01:50.8]} 31...
Kb7 {[%clk 0:02:16.9]} 32. a3 {[%clk 0:01:48.5]} 32... a5 {[%clk 0:02:16.8]} 33.
Ka2 {[%clk 0:01:47]} 33... b5 {[%clk 0:02:14.3]} 34. Rg2 {[%clk 0:01:47.2]}
34... c6 {[%clk 0:02:13.2]} 35. Rh2 {[%clk 0:01:46.7]} 35... Kb6 {[%clk
0:02:13.5]} 36. Rg2 {[%clk 0:01:47]} 36... a4 {[%clk 0:02:14]} 37. Rh2 {[%clk
0:01:46.4]} 37... Re2 {[%clk 0:02:14]} 38. Kb1 {[%clk 0:01:45.7]} 38... Kc5
{[%clk 0:02:10.8]} 39. Rg2 {[%clk 0:01:39.6]} 39... Kc4 {[%clk 0:02:10.2]} 40.
Rg4+ {[%clk 0:01:32.9]} 40... Kc5 {[%clk 0:01:58.6]} 41. Rg5+ {[%clk 0:01:31.8]}
41... Kd4 {[%clk 0:01:54.7]} 42. Rg6 {[%clk 0:01:29.1]} 42... c5 {[%clk
0:01:49.5]} 43. Rb6 {[%clk 0:01:24.3]} 43... Kc4 {[%clk 0:01:48]} 44. Rd6 {[%clk
0:01:08.7]} 44... Rxf2 {[%clk 0:01:44.4]} 45. Ka2 {[%clk 0:01:04]} 45... Rxf3
{[%clk 0:01:42.5]} 46. Rd1 {[%clk 0:01:04.5]} 46... Rf2 {[%clk 0:01:38.3]} 47.
Rc1+ {[%clk 0:01:04]} 47... Kd5 {[%clk 0:01:37.8]} 48. Rd1+ {[%clk 0:01:04.3]}
48... Kc6 {[%clk 0:01:38.1]} 49. Rc1 {[%clk 0:01:04.5]} 49... Kb6 {[%clk
0:01:38.2]} 50. Rd1 {[%clk 0:01:05]} 50... b4 {[%clk 0:01:36.9]} 51. axb4 {[%clk
0:01:03.7]} 51... cxb4 {[%clk 0:01:37.8]} 52. Rd5 {[%clk 0:01:03]} 52... a3
{[%clk 0:01:36.9]} 53. Ka1 {[%clk 0:01:00.6]} 53... Kc6 {[%clk 0:01:34.7]} 54.
Ra5 {[%clk 0:00:53.3]} 54... Kb6 {[%clk 0:01:21.7]} 55. Rd5 {[%clk 0:00:52.3]}
55... Rxb2 {[%clk 0:01:20.5]} 56. Rb5+ {[%clk 0:00:51.2]} 56... Kc6 {[%clk
0:01:20.2]} 57. Rc5+ {[%clk 0:00:51.6]} 57... Kd6 {[%clk 0:01:16.7]} 58. Rd5+
{[%clk 0:00:51.8]} 58... Ke6 {[%clk 0:01:17.1]} 59. Re5+ {[%clk 0:00:51.9]}
59... Kd7 {[%clk 0:01:17.9]} 60. Rd5+ {[%clk 0:00:51.5]} 60... Kc6 {[%clk
0:01:18.5]} 61. Rc5+ {[%clk 0:00:51.8]} 61... Kb7 {[%clk 0:01:19]} 62. Rb5+
{[%clk 0:00:52.1]} 62... Kc8 {[%clk 0:01:19.9]} 63. Rc5+ {[%clk 0:00:52.5]}
63... Kd8 {[%clk 0:01:20.4]} 64. Rd5+ {[%clk 0:00:52.9]} 64... Ke7 {[%clk
0:01:21]} 65. Re5+ {[%clk 0:00:53.3]} 65... Kf6 {[%clk 0:01:21.3]} 66. Rf5+
{[%clk 0:00:53.6]} 66... Kg6 {[%clk 0:01:20.8]} 67. Rg5+ {[%clk 0:00:53.9]}
67... Kh6 {[%clk 0:01:21.3]} 68. Rh5+ {[%clk 0:00:53.7]} 68... Kg6 {[%clk
0:01:21.6]} 69. Rg5+ {[%clk 0:00:30.5]} 69... Kf6 {[%clk 0:01:20.1]} 70. Rf5+
{[%clk 0:00:29.2]} 70... Ke6 {[%clk 0:01:20.5]} 71. Re5+ {[%clk 0:00:29.3]}
71... Kd6 {[%clk 0:01:20.5]} 72. Rd5+ {[%clk 0:00:29]} 72... Kc6 {[%clk
0:01:21.2]} 73. Rc5+ {[%clk 0:00:29.2]} 1/2-1/2